Workbook

Sheet COVER PAGE
B5: SPECIFICATION FOR THE FOLLOWING PROJECT
B7: SCHOOL NAME: | D7: ='SCHOOL INFORMATION'!C5 -> FRANCES BAARD DISTRICT OFFICE - PEME
B8: DISTRICT MUNICIPALITY: | D8: ='SCHOOL INFORMATION'!C10 -> FRANCES BAARD
B9: PROGRAMME | D9: ='SCHOOL INFORMATION'!C20 -> MAINTENANCE-CORRECTIVE
B10: PROJECT DESCRIPTION: | D10: ='SCHOOL INFORMATION'!C21 -> REPAIRS AND RENOVATIONS
B13: CONTRACT DRAWINGS INCUDED? | D13: NO
B19: NOTES:

Sheet SCHOOL INFORMATION
B2: PROJECT INFORMATION
B5: SCHOOL NAME: | C5: FRANCES BAARD DISTRICT OFFICE - PEME
B6: EMIS NUMBER: | C6: =IF('[1]SCHOOL INFORMATION'!$C5="","",VLOOKUP('[1]SCHOOL INFORMATION'!$C5,'[1]MASTER LIST'!$A$1:$IU$1000,4,FALSE)) -> 300100377
B7: OTHER SCHOOLS AFFECTED
B10: DISTRICT MUNICIPALITY: | C10: =IF($C$5="","",VLOOKUP($C$5,'[1]MASTER LIST'!$A$1:$IU$1000,6,FALSE)) -> FRANCES BAARD
B11: LOCAL MUNICIPALITY: | C11: =IF($C$5="","",VLOOKUP($C$5,'[1]MASTER LIST'!$A$1:$IU$1000,7,FALSE)) -> SOL PLAATJE
B12: TOWN/VILLAGE: | C12: =IF($C$5="","",VLOOKUP($C$5,'[1]MASTER LIST'!$A$1:$IU$1000,8,FALSE)) -> KIMBERLEY
B13: LONGITUDE | C13: =IF($C$5="","",VLOOKUP($C$5,'[1]MASTER LIST'!$A$1:$IU$1000,11,FALSE)) -> -28,711558
B14: LATITUDE | C14: =IF($C$5="","",VLOOKUP($C$5,'[1]MASTER LIST'!$A$1:$IU$1000,12,FALSE)) -> 24,732737
B15: SCHOOL PRINICPAL | C15: =IF($C$5="","",VLOOKUP($C$5,'[1]MASTER LIST'!$A$1:$IU$1000,16,FALSE)) -> ; Cellphone:
B16: CONTACT NUMBER | C16: =IF($C$5="","",VLOOKUP($C$5,'[1]MASTER LIST'!$A$1:$IU$1000,17,FALSE)) -> ()
B17: ALTERNATIVE CONTACT NUMBER | C17: =IF($C$5="","",VLOOKUP($C$5,'[1]MASTER LIST'!$A$1:$IU$1000,17,FALSE)) -> ()
B19: INSPECTOR: | C19: MR. D.R. VAN WYK
B20: PROGRAMME: | C20: MAINTENANCE-CORRECTIVE
B21: DETAILED DESCRIPTION OF PROJECT: | C21: REPAIRS AND RENOVATIONS
B22: TYPE OF CONTRACT:
B23: UNIQUE PROJECT NUMBER:
B24: ORDER NO / TENDER NO:
B25: SPECIFICATIONS COMPILED BY: | C25: =C19 -> MR. D.R. VAN WYK
B26: SPECIFICATIONS RECOMMENDED BY: | C26: MR. L. HUMPHREYS
B27: SPECIFICATIONS APPROVED BY: | C27: MR G.B. OLIPHANT
B28: QUOTATION/TENDER CLOSING DATE:
B29: ORDER DATE:
B30: APPOINTMENT DATE:
B31: CONTRACT AMOUNT:
B32: CIDB GRADING | C32: 3GB OR ABOVE
B33: RECOMMENDED CONTRACT PERIOD: | C33: 4 MONTHS

Sheet CONTRACTOR NOTES (1)
A1: NOTICE TO TENDERERS
A3: 1. SITE DESCRIPTION
A4: The site is situated in the Nothern Cape Province, in the town: | C4: KIMBERLEY
A6: 2. WORKS DESCRIPTION
A7: The work includes the: | C7: ='COVER PAGE'!D10 -> REPAIRS AND RENOVATIONS
A9: 3. TENDER ADJUDICATION
A10: All tenderers with minimum CIDB grading of | C10: 3GB OR ABOVE | D10: will be evaluated in line with relevent Procurement
A12: 4. VALUE - ADDED TAX (TAX)
A13: The total tendered price must include for Value - Added Tax (VAT)
A15: 5. SITE INSPECTION
A16: The Project Manager will meet prospective Tenderers as stipulated in the tender advertisement to take them on a tour of inspection of the site and to explain the nature and extent of the work in broad outline. During these compulsary site inspection meeting, all prospective tenderers shall sign onto a proof of attendance register for adjudication processes. Failure to attend the site meeting will lead to disqualification.
A18: 6. APPOINTMENTS
A19: The Contractor shall obtain all necessary particulars of work timeously so to ensure a proper management of site ,i.e Appointment Letter, Specifications, work programme, EPWP schedule and all other project documents.
A20: Safety Management - It is the responsibility of the Contractor to ensure that SHEQ is enforced.
A22: 7. SUBMISSION OF COMPLETE PRICED BILLS OF QUANTITIES WITH THE TENDER
A23: Tenderes shall submit their priced bills of quantities in one original cast in black ink, with their tenders. Completed tender documents sealed in an envelope marked with the "PROJECT NAME", must reach Specified Offices with all requested documents
A24: 8. IMPORTANT
A25: Please take note that before the tender documents are submitted for consideration they must be comprehensively completed. If the tenderer neglects to complete the necessary documents as requested above this could result in the disqualification of the tenderer.
A26: 9. DOCUMENTS
A27: The Drawings, Articles of Agreements, Conditions of Contracts and Form of guarantee available for and must be examined by the Tenderers during normal office hours at the office of the Chief Director or His Representative / Agent before a tender is submitted.
A28: 10. SPECIFICATION
A30: Should any page/s be found to be missing or in duplicate or if any reproduction is indistinct, or if any ambiguity arises as to the meaning of any item or description, or if this Specification contains any obvious errors in respect of measurements and quantities etc., then the Tenderer must immediately inform the Chief Director or His Representative / Agent and have same rectified or explained as the case may be. No claims will be considered afterwards where the Tenderer has failed with these instructions. No alterations, erasure, amendment or note is to be made in the text of this Specification and should any such alteration, erasure, amendment or note be made by the Tenderer it will not be recognised, but this Specification as required by the Chief Director or His Representative / Agent will be adhered to.
A31: 11. DRAWINGS
A32: This Specification has been prepared in conjunction with the following drawing/s. Drawing number: Description: The site for this service is:- KIMBERLEY: DISTRICT OFFICE - PEME
A33: 12. SCOPE OF WORK
A34: The Works covered by this Specification consists of the following: - REPAIRS TO RENOVATIONS
A35: 13. CONTRACT PERIOD
A36: The time to be allowed for the completion of the Work in terms of Clause 20 of the Conditions of Contract shall be FOUR (4) MONTHS calculated from the acceptance of the tender.

Sheet CONTRACTOR NOTES (2)
A1: NOTICE TO TENDERERS
A21: 14. PENALTY FOR DELAY
A22: Tenderers are advised that the penalty to be deducted in terms of Clause 24.2 (a) or Clause 24.3 (a) of the Conditions of Contract will be R 800-00 (ONE HUNDRED RAND) per day for each day by which the completion of the Works may be in arrears.
A24: 15. TRADE NAMES
A25: Prices for articles described by trade names or catalogue references must be based on the type and manufacture specified in this Specification. Where articles other than of the manufacture specified are used, the written approval of the Chief Director or his Representative / Agent must be obtained before confirming orders for any such materials, as no claim for extras in this respect will be considered.Where materials other than of the manufacture specified are used with written approval, an adjustment of the price of such material will be made and an Order in Writing issued to confirm such adjustment.
A26: 16. QUALITY OF MATERIALS
A27: Wherever the South African Bureau of Standards has prepared specifications for materials or products, such materials or products, whether so specified or not, are to be made and supplied to the Bureau’s specification, and further where materials or products are manufactured by Permit Holders of the S.A.B.S., such materials or products must be supplied stamped with the S.A.B.S. mark. Should the Contractor wish to use the materials or products of a person or firm who is not a Permit Holder, when there are permit holders for the particular materials or products, he must obtain the written approval of the Chief Director or his Representative / Agent before confirming orders for any such materials, as no claim for extras in this respect will be considered. All references to Specifications and Codes of Practice of the Council of the Bureau of Standards shall be deemed to be references to the latest issue of such Specifications and Codes of Practice.
A28: 17. OVERALLS
A29: All workman employed on site must be provided with and be dressed in protective overalls clearly marked with the name of the Contractor.
A30: 18. ALTERNATIVE TENDERS
A31: Tenderers are advised that, notwithstanding the provisions of Clause 6 on page 1 of the Tender Form, no alternative tenders for the work specified herein will be considered.
A32: 19. SECURITY OFFERED
A33: The contractor shall provide security to the satisfaction of the Chief Director for .0% of the tender price.
A35: SPECIAL NOTES TO CONTRACTORS
A36: (1). It is first and foremost the responsibility of the contractor to employ only qualified persons to ensure that the quality of workmanship delivered is at all times of a high and acceptable standard when handed over to the Department of Education. The contractor is to ensure proper supervision in order to achieve this as it is not the responsibility of the Works Inspector to act as a foreman on behalf of the contractor.
A37: (2). It is the responsibility of the contractor / tenderer to visit the site to fimiliarise himself with the conditions on site prior to the pricing of this document.
A38: (3). It is the responsibility of the contractor to consult with the Works Inspector responsible for the contract prior to the pricing of this document to clarify any discrepensies. Any deviation from this document without the consent of the Works Inspector will be deemed nullen void.
A39: (4). Any damages or repairs to surrounding works, the replacement of equipment or any other losses suffered as a result of negligence or any other action, which is to the detriment of the Department shall be made good at the expense of the contractor.
A40: (5). The premises will be occupied during the contract period and care should be taken to isolate works in this regard.
A41: (6). It is the sole responsibility of the contractor to verify dimensions on site and to determine the correct quantities and measurements before pricing commences. Failure to do so will be to the account of the contractor.
A42: (7). The working hours shall be confined to between 7:00 to 17:00. should the need arise to work for extended hours and over weekends the contractor shall make prior arrangements for such with the Department and institution in question.
A43: (8).The contractor will be responsible for the water and electricity supply including any other related costs necessary to conduct the said service for the duration of this project / contract. When making use of existing water and electricity supplies, financial arrangements must be made with the institution in question.
A44: 9). All works must be completed to Departmental standards and to the approval of the Chief Director of the Department of Education. Any sub-standard work will be corrected by the contractor at his own expense carried out to the complete satisfaction of the Chief Director. Failure to do so will result in non- payment and the Department will obtain alternate quotations in order to realise the desired quality of workmanship.
A45: (10). All materials shall bear the SABS stamp of approval. The contractor must ensure that only material specified are priced for and that samples in this regard is presented for approval before use. any deviation from materials specified must be approved by the Chief Director of Education. Non-SABS approved materials shall not be accepted.
A46: (11). The contractor is to allow for the submitting of actual paint samples and the application thereof in order for colour schemes to be finalised.
A47: (12). The contractor shall utilise local labour to the maximum.
A48: (13). After completion of the work leave perfect in all trades, remove all the rubble as a result of construction and leave the working area neat and tidy.

Sheet SPECIFICATION UNPRICED
A1: SPECIFICATION - UNPRICED
A2: ='COVER PAGE'!D7 -> FRANCES BAARD DISTRICT OFFICE - PEME
A3: ='COVER PAGE'!D9 -> MAINTENANCE-CORRECTIVE
A4: ='COVER PAGE'!D10 -> REPAIRS AND RENOVATIONS
A6: SPECIFICATION | B6: UNIT | C6: QTY | D6: Unit Price | E6: Amount
A7: REPAIRS AND RENOVATIONS
A9: PRELIMINARY AND GENERAL
A10: Contractural Requirements including Site Establishment and removal of site establishment. | B10: No | C10: 1 | D10: 0 | E10: =C10*D10 -> 0
A11: Compliance to Occupational Health and Safety Act and Regulations The contractors attention is drawn to the notes to tenderers “Occupational Health and Safety Act” with the full contents thereof as well as the Government Gazette No. 25207 (18 July 2003) and O.H & S. Specification is provided. The total cost of the Health and Safety items must be priced under this clause as no additional claims will be entertained. | B11: No | C11: 1 | D11: 0 | E11: =C11*D11 -> 0
A12: SUB TOTAL | E12: 0
A14: EARTHWORKS
A15: EXCAVATIONS
A16: DEFINITIONS FOR EXCAVATIONS: Earth shall mean ground that can be removed by hand tools and shall include loose gravel, clay, made up ground, loose or soft shale, ouklip and any loose boulders less than 75mm in diameter. Soft rock shall mean rock that can be loosened by hand pick or crowbar and includes hard shale, compact ouklip, stone of a similar hardness and boulders from 75mm diameter up to 0, 03 cubic meters in volume. Hard rock shall mean granite, quartzitic sandstone, slate and rock of similar or greater hardness, and boulders over 0, 03 cubic meters in volume.
A17: EXCAVATIONS FOR NEW SEWER, INCREASE GRADIENT OF EXISTING SEWER AND NEW WATER SUPPLY PIPE TRENCHING
A18: Excavate in earth for a 330m trench exceeding 1000mm and not exceeding 2000mm deep to lay a 160mm diameter Upvc drain pipe measured elswhere. Excavations must be 600mm wide and in straight lines and neatly trimmed. | B18: m³ | C18: 370 | D18: 0 | E18: =C18*D18 -> 0
A19: Excavate earth out of 8 holes, 1mx1mx exceeding 1meter and not exceeding 2m deep for the construction of 8 manholes measured elsewhere. | B19: m³ | C19: 7 | D19: 0 | E19: =C19*D19 -> 0
A20: Excavate earth out of 150m trench, 600mm deep x 300mm wide for a new water pipe measured elsewhere. | B20: m³ | C20: 20 | D20: 0 | E20: =C20*D20 -> 0
A21: Extra over trench excavations in earth for excavations
A22: Soft rock | B22: m³ | C22: 22 | D22: 0 | E22: =C22*D22 -> 0
A23: Hard rock | B23: m³ | C23: 12 | D23: 0 | E23: 0
A24: Extra over all excavations for carting away
A25: Surplus material including rock from excavations and/or stock piles on site to be used to fill up the existing conservancy tank. Material shall be well watered and rammed in layers not exceeding 150mm in depth and thoroughly consolidated to a density of not less than 90% Modified AASHTO. | B25: m³ | C25: 14 | D25: 0 | E25: =C25*D25 -> 0
A26: Filling
A27: Place 100mm river sand blinding and compact- length 480m | B27: m³ | C27: 48 | D27: 0 | E27: =C27*D27 -> 0
A28: Place 200mm river sand blanket and compact- length 480m | B28: m³ | C28: 96 | D28: 0 | E28: =C28*D28 -> 0
A29: Backfill trench and compact to a density of not less than 90 per cent Modified AASHTO. | B29: m³ | C29: 417 | D29: 0 | E29: =C29*D29 -> 0
A30: Filling of conservancy tank shall be of approved clean earth, well watered and rammed in layers not exceeding 150mm in depth and thoroughly consolidated to a density of not less than 90% Modified AASHTO.
A31: SUB TOTAL | E31: 0
A34: CONCRETE WORK
A35: Break up existing six manhole concrete bases of 600mm( L) x 450mm (W) x 100mm thick which will be directed on site. | B35: m³ | C35: 1 | D35: 0 | E35: =C35*D35 -> 0
A36: Cast new concrete base of 600mm( L) x 450mm (W) x 100mm thick in class C-concrete with concrete strength not less than 25Mpa for eight new drain manholes measured elswhere. | B36: m³ | C36: 1 | D36: 0 | E36: =C36*D36 -> 0
A37: SUB TOTAL | E37: 0
A39: MASONRY
A40: BRICKWORK
A41: Manholes
A42: Demolish six existing manholes, 600mm(L) x 600mm(W), not exceeding 1000mm deep. | B42: no | C42: 6 | D42: 0 | E42: =C42*D42 -> 0
A43: Break into existing sewer drain not exceeding 1000mm deep, connect new 160mm diameter PVC piping and make good to wall, etc. Also redo the benching according to the new flow direction. | B43: no | C43: 1 | D43: 0 | E43: 0
A44: Supply and install a new 450 x 450mm light duty single seal manhole cover with frame on top of existing valve chamber. | B44: no | C44: 1 | D44: 0 | E44: 0
A45: Construct a new manhole with a 600 x 600mm medium duty double seal manhole cover with frame. Build a manhole of 15 course one brick walls in stretcher bond with NFX bricks in Class11 mortar, plastered interior walls and the exposed exterior one brick coarse above natural ground level. Benching to the floor of manhole and around drain pipe. | B45: no | C45: 5 | D45: 0 | E45: 0
A46: Construct a new manhole with a 600 x 600mm medium duty double seal manhole cover with frame. Build a manhole of 19 course one brick walls in stretcher bond with NFX bricks in Class11 mortar, plastered interior walls and the exposed exterior one brick coarse above natural ground level. Benching to the floor of manhole and around drain pipe. | B46: no | C46: 2 | D46: 0 | E46: 0
A47: Construct a new manhole with a 600 x 600mm medium duty double seal manhole cover with frame. Build a manhole of 23 course one brick walls in stretcher bond with NFX bricks in Class11 mortar, plastered interior walls and the exposed exterior one brick coarse above natural ground level. Benching to the floor of manhole and around drain pipe. | B47: no | C47: 1 | D47: 0 | E47: 0
A48: SUB TOTAL | E48: 0
A51: ROOF COVERING
A52: REPAIR ROOF LEAKAGES
A53: Thoroughly examine roof surfaces of buildings. The contractor is to pay special attention internally where watermarks are evident on ceilings to locate leaks. All loose, missing or worn out roof screws are to be replaced, plug screw holes using an approved wood glue and fit new and longer roof screws including new washers and under cup washers. Holes in sheets are to be soldered. Similarly examine all ridging and make good where defective sections are located. Areas of roof that have been previously sealed must be carefully re-examined and all defective membranes should be removed and repaired as mentioned above. In addition to this, the contractor is to provide the Department with a written guarantee equivalent to one year starting from the date of final delivery. Location: Building Block A: 204m² Building Block B: 936m² Office Block D: 936m² Office Block E: 936m² Covered Passages: 405m² | B53: m² | C53: 3417 | D53: 0 | E53: =C53*D53 -> 0
A54: SUPPLY AND INSTALL NEW 0,6MM CORUGATED ROOF SHEETS
A56: Replace rusted corrugated roof sheets with new SABS approved 0,6mm corrugated roof sheets with 6 x 75mm roof screws on roof of office block C which will be directed on site. | B56: m² | C56: 858 | D56: 0 | E56: =C56*D56 -> 0
A57: SHEET METAL FLASHINGS
A58: Supply and install new 0,55mm thick approved galvanized metal ridgeflashings and accessories. Fixtite stitching screws to be used to fix flashings to sheeting at Office block C. | B58: m | C58: 80 | D58: 0 | E58: 0
A59: Replace missing 25mm x 10mm gable flashing with new 0,55mm thick approved galvanized metal flashings and accessories. Clips and Fixtite stitching screws to be used to fix flashings to sheeting at Office block C. | B59: m | C59: 12 | D59: 0 | E59: 0
A60: Refit existing loose gable flashing with suitable fastners at office block E. | B60: m | C60: 3 | D60: 0 | E60: 0
A61: SUB TOTAL | E61: 0
A63: CARPENTRY AND JOINERY
A64: REPAIR TO TIMBER ROOF TRUSS CONSTRUCTION
A65: Where components of the wooden roof construction are replaced they must be taken out and removed and replaced in “Merchantable Grade” South African Pine complying with the requirements of SABS Specifications for Stress-Graded Softwood General Structural Timber, S.A.B.S.563.During the replacement of components of the roof construction the rest of the roof construction must be supported. Where roofs have sagged they must be realigned including the supply of additional bearers, struts, etc. All roof timbers are to be treated in accordance with the requirements for Class C preservatives as laid down in the SABS Code of Practice for Preservative Treatment of Timber, S.A.B.S.05. Roof trusses are to be properly constructed, lapped at all junctions and spiked together with ends of nails crimped over and each intersection bolted with 10mm diameter bolts. Feet of trusses are to be secured with 1,6mm galvanized mild steel straps 38mm wide and 900mm girth wrapped around roof timbers and spiked to plates. Purlins must be in long lengths continuous over at least three rafters, set on edge, securely spiked to rafters and each intersection of purlin and rafter must be tied together with and including 4mm diameter galvanized wire tie 750mm long wrapped around rafter and purlin, tightly drawn up and twisted.
A66: Replace defective 50mm x 76mm purlins with new of existing roof trusses at office block C. | B66: m | C66: 264 | D66: 0 | E66: =C66*D66 -> 0
A67: Replace defective 50mm x 76mm foot purlins with new at building block A. | B67: m | C67: 40 | D67: 0 | E67: =C67*D67 -> 0
A68: Supply and fit 114mm x 38mm verge timber, 200mm long and fastened twice with 6mm diameter bolts and nuts to existing verge timber at building block A. | B68: m | C68: 4 | D68: 0 | E68: =C68*D68 -> 0
A69: SUPPLY AND INSTALL NEW FASCIA AND BARGE BOARDS
A70: Supply and install new 225mm x 10mm fibre cement fascia and barge boards with steel joiners at eaves and gable wall. Location: Building block A - fascia board: 40m barge board: 24m; Office Block C - barge board: 4m; Office Block E - barge board: 2m | B70: m | C70: 70 | D70: 0 | E70: =C70*D70 -> 0
A71: SUPPLY AND INSTALL F.L & B DOORS(SINGLE LEAF)
A72: Take down 2 damaged timber doors and 3 damaged steel doors and remove from site. Supply and fit to frames new single leaf 44x810x2030mm meranti hardwood F.L and B open back door including weatherboard, hung on new hinges using new screws of a suitable length. New door are to be fitted, with an even gap of 2mm around the outside of door. Supply and fit new hardwood door specified and leave door to open and close freely without being hinge bound on completion. Location: Block C - room no. 4 and 5 ; Block A - Ladies and Gents toilets including kitchenette. | B72: no | C72: 5 | D72: 0 | E72: =C72*D72 -> 0
A73: SUPPLY AND INSTALL F.L & B DOORS(DOUBLE LEAF)
A74: Take down damaged double timber doors and remove from site. Supply and install rebated 1510mm x 2015mm double timber door as specified above. Location: In passage of office block C and D. | B74: no | C74: 2 | D74: 0 | E74: =C74*D74 -> 0
A75: REPLACE DOORS (SAPELE SEMI-SOLID)
A76: Take down toilet cubicle steel doors in toilet blocks where directed and remove from site. Supply and hang on existing mild steel hinged using 40mm mild steel wood screws, new Semi-Solid Sapele Veneered doors, neatly hung with a 3mm gap all round. Doors are to open and close freely without any obstruction and should not be hinge bound in any way. Ladies and Gents toilets at block A. | B76: no | C76: 2 | D76: 0 | E76: =C76*D76 -> 0
A77: REPLACE DAMAGED MERANTI SKIRTINGS AND QUDRANTS
A78: Replace damaged skirtings and quadrants with new 68mmx13mm “Meranti” skirting and 30mmx30mm quadrant which is nailed to the wall at not exceeding 300mm centers, with 2mm diameter galvanized cadminium plated clout headed nails, 40mm long, or fixed to walls with hardened steel nails driven into the brickwork. Location: Block B - disabled toilet | B78: m | C78: 6 | D78: 0 | E78: =C78*D78 -> 0
A79: SUB TOTAL | E79: 0
A81: CEILINGS
A82: NEW RHINO BOARD CEILINGS
A83: Carefully take down damaged ceiling boards.Supply and securely fix to existing ceiling construction new 6.4mm rhino ceiling boards where mentioned complete with cover strips or similar to match existing and 75mm rhino cornices. New rhino board ceiling panels are to be securely fixed in place using suitable 32mm grabber screws spaced at centers not exceeding 150mm and cornices at centers not exceeding 200mm using suitable hammer fasteners. Leave new ceiling flush and even on completion.Location: Block B: room 2- 10m² ; room 3 - 50m² ; room 4 - 25m² ; room 5 - 25m²; Block C: room 6 - 25m² | B83: m² | C83: 135 | D83: 0 | E83: =C83*D83 -> 0
A84: REPLACE MISSING TIMBER CORNICE
A85: Provide and fit, in an approved manner, new 50 x 25mm SA Pine timber cornice which is nailed to the wall at not exceeding 300mm centers, with 2mm diameter galvanized cadminium plated clout headed nails, 40mm long, or fixed to walls with hardened steel nails driven into the brickwork to match existing. Location: Block B - room 8: 3m; Block C - room 4: 3m | B85: m | C85: 6 | D85: 0 | E85: =C85*D85 -> 0
A86: FASTEN AND SEAL EXISTING CORNICE
A87: Fasten as mentioned above and seal with an approved white paintable silicone sealer the existing cornices.Location: Block B - room 8: 3m; Block D - room 2: 5m | B87: m | C87: 8 | D87: 0 | E87: =C87*D87 -> 0
A88: REPLACE DAMAGED MERANTI SKIRTINGS AND QUDRANTS
A89: Replace damaged skirtings and quadrants with new 68mmx13mm “Meranti” skirting and 30mmx30mm quadrant which is nailed to the wall at not exceeding 300mm centers, with 2mm diameter galvanized cadminium plated clout headed nails, 40mm long, or fixed to walls with hardened steel nails driven into the brickwork. Location: Block B - disabled toilet | B89: m | C89: 6 | D89: R85 | E89: =C89*D89 -> R510
A90: SUB TOTAL | E90: 0
A92: FLOOR COVERINGS, WALL LININGS, ETC.
A93: RE-FIT LOOSE CARPET TILES
A94: Sand down and clean floor surfaces of loose carpet tilesa. Apply an SABS approved carpet adhesive according to manufacturers instructions to floor area and re-fit the loose tile carpet. | B94: m² | C94: 100 | D94: 0 | E94: =C94*D94 -> 0
A95: SUB TOTAL | E95: 0
A96: SUPPLY AND FIT A RUBBER NON-SLIP FLOOR TAPE
A97: Supply and fit 500mm (L) x 100mm (W) self-adhesive dimpled rubber black non-slip tape to floor and concrete ramp for safe social distance spacing of 1500mm apart at the reception office of office block T, which will be directed on site. | B97: m | C97: 5 | D97: R320 | E97: =C97*D97 -> R1,600
A98: SUB TOTAL | E98: =SUM(E94:E97) -> R1,600
A100: IRONMONGAREY
A102: LOCKS AND FURNITURE
A103: Replace timber door lock with a new SABS approved double cylinder lock with mortice door lock set supplied complete with C.P furniture and two keys per lock. Lock are to be similar or equal to that supplied by “Solid or Union”. Location: Block A - ladies and gents toilets x 2; kitchenette x 1; store room adjacent to kitchenette; Block C - room 5 ; double steel door between block B and C. | B103: no | C103: 6 | D103: 0 | E103: 0
A104: Supply and install a new SABS approved double cylinder type lock with mortice door lock set supplied complete with C.P furniture and two keys per lock including rebate conversion kit for double rebated timber door. Lock are to be similar or equal to that supplied by “Solid or Union”. Location: Block C - double timber door in passage; Block D - double timber door in passage. | B104: no | C104: 2 | D104: 0 | E104: =C104*D104 -> 0
A105: Replace only door cylinder type mortice lock case with C.P furniture. Location: Block B -room 2. | B105: no | C105: 1 | D105: 0 | E105: 0
A106: Replace only double cylinder type lock of timber door with a new chrome plated SABS approved lock. Lock are to be similar or equal to that supplied by “Solid or Union. Location: Block B - room 3.2 and 3.3 | B106: no | C106: 2 | D106: 0 | E106: 0
A107: ce only double cylinder type lock of timber door with a new chrome plated SABS approved lock. Lock are to be similar or equal to that supplied by “Solid or Union. Location: Block B - room 3.2 and 3.3
A108: Supply and install SABS approved toilet door chrome plated indicator bolt. Location: Block A - Ladies and gents toilets x 2 | B108: no | C108: 2 | D108: 0 | E108: 0
A109: Supply missing SABS approved chrome plated paraplegic door indicator bolt. Location: Block E - disabled toilet | B109: no | C109: 1 | D109: 0 | E109: 0
A110: Replace security ultra doorlock only with a new SABS approved lock with two keys. Loacation: Block A - store room. | B110: no | C110: 1 | D110: 0 | E110: 0
A111: Supply and deliver one duplicate key for main entrance door at block B - room3. | B111: no | C111: 1 | D111: 0 | E111: 0
A112: Supply and install missing chrome plated striker plate of existing door lock.Location: Block B - room 2.3 and Block C - room 8(main entrance). | B112: no | C112: 2 | D112: 0 | E112: 0
A113: Refit doorlock by using 65mm long x 4mm thick bolts and nuts. Location: Block B - room 8.1. | B113: no | C113: 1 | D113: 0 | E113: =C113*D113 -> 0
A114: Supply and install missing 200mm long window pegstays, chrome plated finish. Fit stays to window brackets with screw provided to ensure that all new stays are fully operational on completion.Location: Ladies toilet - block A x 2; In passages of Block B, C, D and E. | B114: no | C114: 30 | D114: 0 | E114: =C114*D114 -> 0
A115: SUB TOTAL | E115: 0
A117: METAL SHELVING
A118: SUPPLY AND INSTALL INDUSTRIAL BOLTED METAL SHEVING
A119: Supply and install industrial bolted angle metal shelving with an epoxy powder coating finish(grey colour) according to the manufacturer. Open braced shelving should include sturdy slotted 2mm thick angle uprights, steel shelves, bracing and fixings. Metal shelving unit/bay with 6 shelves spaced 400mm apart: Dimensions of unit - 2210mm height x 941mm width x 384mm depth. Location: Strong room no. 1 - 24 units. Strong room no. 2 - 45 units . Script room - 25 units. Packing room - 18 units | B119: no | C119: 112 | D119: R2,350 | E119: =C119*D119 -> R263,200
A124: LOCKERS
A125: Supply and install an industrial type steel lockable single locker, 2 louvered doors with standard epoxy powder coated finish. Overall size 1800 height x 300 width x 450mm depth. | B125: no | C125: 15 | D125: R2,300 | E125: =C125*D125 -> R34,500
A126: SUB TOTAL | E126: R317,380
A128: METALWORK
A130: SUPPLY AND INSTALL A DOOR LOCK TAMPER PROOF STEEL COVER PLATE
A131: SUPPLY AND INSTALL A NEW ROLLER SHUTTER DOOR
A132: To tamper proof existing door lock at block B - room 4, supply and fit a 9mm (W) x 40mm (L) x 3mm thick mild steel plates, flush to both sides of existing timber door, fastened with four black galvanised M8x 50mm long cup square bolts and nuts. | B132: no | C132: 1 | D132: 0 | E132: 0
E133: 0
A134: Remove socket outlets at existing positions at shown on site. | B134: item | C134: 7 | D134: R50 | E134: =D134*C134 -> R350
A136: SUB TOTAL | E136: 0
A138: PLASTERING
B139: item | C139: 7 | D139: R300 | E139: =D139*C139 -> R2,100
A140: REPAIR CRACK TO WALL
A141: Create a vee notch in the wall approximately 10mm wide over the crack using a hammer and chisel or other small power tools and clear all debris, loose concrete and dust, prime the surface with approved concrete primer and fill the vee notch with epoxy mortar "silka mono op 615HB or similar approved. | B141: m² | C141: 1 | D141: 0 | E141: =C141*D141 -> 0
A142: OTHER METALS
A143: REMOVAL OF STALL URINAL
A144: Carefully remove 1m long x 1.2m high steel stall urinal in gents toilet at block A and cart away from site. Neatly repair and make good to face of walls where stall urinal have been removed at . | B144: no | C144: 1 | D144: 0 | E144: =D144*C144 -> 0
A146: Carefully hack up step of stall urinal where directed until surface bed is reached and remove rubble from site. | B146: m³ | C146: 1 | D146: 0 | E146: =D146 -> 0
A147: SUB TOTAL | E147: 0
A149: TILLING
A150: WALL TILLING - SPLASH BACK
A151: Fit new Class A glazed 200x200x8mm thick ceramic wall tiles equal or similar to “Johnson Tiles” to walls for splash back above kitchen sink at building block A.Thoroughly clean, prepare for and cover walls in an approved manner, using an approved glazed porcelain wall tiles as well as an approved tile adhesive applied in strict accordance with the instructions of the tile manufacturer. Joints between tiles are to be of a uniformed size, approximately 3mm – 5mm wide depending on the size of the tile being used. On completion neatly grout in joints between tiles with an anti-bacterial waterproofing grouting, neatly strike off and leave perfectly clean. | B151: m² | C151: 1 | D151: 0 | E151: 0
A152: Fit new Class A 400x250x8mm thick ceramic wall tiles to gents and ladies toilets at building block A.Thoroughly clean, prepare for and cover walls in an approved manner, using an approved glazed porcelain wall tiles as well as an approved tile adhesive applied in strict accordance with the instructions of the tile manufacturer.Joints between tiles are to be of a uniformed size, approximately 3mm – 5mm wide depending on the size of the tile being used. On completion neatly grout in joints between tiles with an anti-bacterial waterproofing grouting, neatly strike off and leave perfectly clean. | B152: m² | C152: 100 | D152: 0 | E152: =C152*D152 -> 0
A153: Fit new Class A 450x450x8mm thick ceramic floorl tiles to gents and ladies toilets at building block A.Thoroughly clean, prepare for and cover walls in an approved manner, using an approved glazed porcelain floor tiles as well as an approved tile adhesive applied in strict accordance with the instructions of the tile manufacturer.Joints between tiles are to be of a uniformed size, approximately 3mm – 5mm wide depending on the size of the tile being used. On completion neatly grout in joints between tiles with an anti-bacterial waterproofing grouting, neatly strike off and leave perfectly clean. | B153: m² | C153: 15 | D153: 0 | E153: =C153*D153 -> 0
A154: Replace all broken and missing floor tiles in passages with a similar colour and tile finish, the same as specified above which will be directed on site. Also where missing neatly grout in joints between tiles with an anti-bacterial waterproofing grouting, neatly strike off and leave perfectly clean. | B154: m² | C154: 50 | D154: 0 | E154: =C154*D154 -> 0
A155: SUB TOTAL | E155: 0
A157: PLUMBING AND DRAINAGE
A158: WATER MAIN SUPPLY
A162: EAVE GUTTERS REFIX AND RE-ALIGN
A164: Examine all eaves gutters thoroughly clean out interior of gutters and remove visible rust by means of wire brushing. Straighten and align all gutters and supply and fit new gutter brackets where required. Gutters are to be re-aligned using hoped iron straps, 32mm wide fixed to each existing gutter bracket or every second bracket as and where required. Galvanized hoped iron straps are to be fixed to bracket bolts and riveted to roof sheeting respectively using aluminium rivets. In addition to the above, all gutters are to be rendered watertight on completion using an approved bitumen sealer applied to the inside in strict accordance with instructions of the manufacturer. | B164: m | C164: 672 | D164: 0 | E164: =C164*D164 -> 0
A166: Replace rusted galvanised gutters with new SABS approved 100 x 125mm galvanised gutters complete with brackets, stop - ends and outlets at building block B and C. | B166: m | C166: 320 | D166: 0 | E166: =C166*D166 -> 0
A167: PIPEWORK ETC.
A168: SUPPLY AND LAY NEW 50MM HDPE WATER MAIN SUPPLY
A169: Supply and lay new 50mm high density polyethylene pipe (class 6) according SANS 2001-DP6 in trench complete with all the necessary compression fittings required to render the supply of water to all existing plumbing fixtures operational at the District Office - Peme. | B169: m | C169: 150 | D169: 0 | E169: =C169*D169 -> 0
A170: Supply and lay/fit new 20mm high density polyethylene pipe (class 6) according SANS 2001-DP6 in trench and against masonry wall complete with all the necessary compression fittings required to render the supply of water to all existing plumbing fixtures operational at building block A. | B170: m | C170: 6 | D170: 0 | E170: 0
A171: Remove rusted 20mm diameter galvanised service pipe at building block A, which will be directed on site and cart away. | B171: m | C171: 15 | D171: 0 | E171: 0
A172: Supply and fit where directed surface 16mm Cross-Linked Polyethylene (PEX) water pipes complete with all the necessary compression fittings required as well as all other fittings and fixtures that may be required to render the supply of water to all existing plumbing fixtures operational at building block A. NB: Contractor to conduct a water test on water supply pipes to check for leaks at joints etc. | B172: m | C172: 15 | D172: 0 | E172: 0
A173: SUPPLY AND FIT NEW WASTE WATER PIPES
A174: Remove rusted 50mm diameter galvanised waste water pipes at building block A, which will be directed on site and cart away. | B174: m | C174: 5 | D174: 0 | E174: =C174*D174 -> 0
A175: Supply and install new 50mm PVC waste water pipe complete with all the necessary fittings and connect to all plumbing fixtures operational at block A. | B175: m | C175: 10 | D175: 0 | E175: 0
A177: SUPPLY AND LAY NEW DRAIN PIPES
A178: Supply and lay 160mm diameter Upvc underground drain pipes with a 1:80 slope in earth trench measured elsewhere. | B178: m | C178: 130 | D178: 0 | E178: =C178*D178 -> 0
A179: Supply and lay 160mm diameter Upvc underground drain pipes with a 1:100 slope in earth trench measured elsewhere. | B179: m | C179: 180 | D179: 0 | E179: 0
A180: EXTRA OVER UPVC DRAIN PIPIES
A181: 110mm x 87.5˚ ribbed bend plain underground soil fitting | B181: no | C181: 3 | D181: 0 | E181: =C181*D181 -> 0
A182: 110mm x 45˚ ribbed junction plain | B182: no | C182: 3 | D182: 0 | E182: 0
A183: 110mm x 50 unction single reducing plain above ground soil fitting | B183: no | C183: 2 | D183: 0 | E183: 0
A184: 110mm x 87.5˚ vent horn bend excess heel above ground soil fitting | B184: no | C184: 2 | D184: 0 | E184: 0
A185: 110mm P-Trap gully | B185: no | C185: 1 | D185: 0 | E185: 0
A186: 150x110mm gulleyhead and grate - round | B186: no | C186: 1 | D186: 0 | E186: 0
A187: 110mm x 45˚ rodding eye - location: Building Block A x 1; Block E x 2 | B187: no | C187: 3 | D187: 0 | E187: 0
A188: 50mm vent valve 2-way | B188: no | C188: 1 | D188: 0 | E188: 0
A189: 110mm pan coller straight | B189: no | C189: 2 | D189: 0 | E189: 0
A190: REMOVE CAST IRON DRAIN PIPES AND FITTINGS
A191: Take down and remove 110mm cast iron drain fittings and vent pipe at building block A and cart away from site. | B191: item | C191: 1 | D191: 0 | E191: 0
A192: RUBBER TRAPS
A193: Supply and install new 32mm Butyl rubber trap including hose clamps under two new hand wash basins and existing sink at kitchenette of building block A. | B193: no | C193: 3 | D193: 0 | E193: 0
A194: Supply and install new 38mm Butyl rubber trap including hose clamps under new urinal at gents toilet of building block A. | B194: no | C194: 1 | D194: 0 | E194: 0
A195: WAISTE UNIONS
A196: Supply and install new 32mm basin waste union with backnut plug and chain as cobra 301 or similar approved at gents and ladies toilets of Block A. | B196: no | C196: 2 | D196: 0 | E196: 0
A197: Supply and install a new 38mm Urinal waste union at gents toilet at Block A. | B197: no | C197: 1 | D197: 0 | E197: 0
A198: Replace damaged 32mm basin push button waste union with new at Block B - ladies toilet x 1; Block D - gents toilet x 2. | B198: no | C198: 3 | D198: 0 | E198: 0
A199: TAPS, VALVES, ETC.
A200: Supply and install a new SABS approved 22mm brass stop tap against wall at Block A. | B200: no | C200: 1 | D200: 0 | E200: 0
A201: Replace disfunctional gate valve with a new SABS approved 50mm fullway brass gate valve in existing valve chamber which will be directed on site. | B201: no | C201: 1 | D201: 0 | E201: 0
A202: Supply and install a new 15mm Boll O- stop lever valve. Location: Block A - ladies and gents toilets x 4; Block D - gents toilet x 1. | B202: no | C202: 5 | D202: 0 | E202: 0
A203: Supply and install new 15mm flexi-connector pipes at Block A - gents and ladies toilets x 4 and under sink in kitchenette. | B203: no | C203: 5 | D203: 0 | E203: 0
A204: Supply in fit a SABS approved junior flush master similar to “Cobra” complete with spreader pipe and all necessary fittings to render the job operational and leak free at new urinal of gents toilet at Block A. | B204: no | C204: 1 | D204: 0 | E204: 0
A205: Service and repair the existing junior flush master at urinals of gents toilets at Block D. | B205: no | C205: 2 | D205: 0 | E205: 0
A206: Supply and install new 15mm C.P star pillar taps at basins of ladies and gents toilets of Block A. | B206: no | C206: 2 | D206: 0 | E206: 0
A207: Replace disfunctional wall mounted 15mm C.P sink mixer tap with new at kitchen of Block D. | B207: no | C207: 1 | D207: 0 | E207: 0
A208: Replace disfunctional push button flush mechanism of cistern at gents toilets of Block D. | B208: no | C208: 1 | D208: 0 | E208: 0
A209: Repair water leakage at pan coller of water closet at disabled toilet of Block B. | B209: no | C209: 1 | D209: 0 | E209: 0
A210: SANITARYWARE
A211: SUPPLY AND INSTALL NEW HAND WASH BASIN
A212: Disconnect water supply and remove rusted cast iron wash hand basin and cart away from site. Location: Block A - gents and ladies toilets x 2. | B212: no | C212: 2 | D212: 0 | E212: 0
A213: Supply and install a new Vaal Sanitaryware Daisy vitreous china or similar approved wall mounted basin colour White (Code: 700803WH), size 510 x400mm with one tap hole (LHS) including integrated overflow and chainstay hole, bolted to wall with two 10mm bolts (Code:8448Z0) and sealed with silicone sealant where basin meets wall.Connect hand wash basin to water and waste pipe and leave perfect in all trades. | B213: no | C213: 2 | D213: 0 | E213: 0
A214: SUPPLY AND INSTALL NEW WALL MOUNTED URINAL
A215: Supply and fit to wall where directed, new Vaal sanitaryware sweetpea wall hung bowl urinal (code: 705127) white vitreous Spreader (code 3545) and two hanger brackets (code 8127).Connect urinal to water and waste pipe and leave perfect in all trades. | B215: no | C215: 1 | D215: 0 | E215: 0
A216: SUPPLY AND FIT NEW WATER CLOSET SUITES (SEMI CLOSED) COMPLETE WITH CISTERN
A217: Disconnect water supply and remove cisterns and toilet pans at ladies and gents of Block A and cart away from site. | B217: no | C217: 2 | D217: 0 | E217: 0
A218: Supply and fit new porcelain semi close couple water closets complete with cistern, flushing mechanisms as well as heavy duty pvc double flap toilet seats.Connect cisterns to new water supply and pan to new pan connector, adapted as and where required using approved fittings that are to be supplied.Thoroughly prepare floor to receive new pan, chip and slush and thereafter bed the base of new pan using 3:1 cement mortar, and leave to set. Securely bolt new cistern to walls using suitable none ferrous fixing lugs supplied with cistern. | B218: no | C218: 2 | D218: 0 | E218: 0
A221: SUB TOTAL | E221: 0
A223: PAINTING
A224: INTERNAL PAINTING
A225: PAINT PAINTED CEILINGS AND NEW CEILINGS
A226: Clean down, prepare for and apply one undercoat and two coats of PVA Acrylic paint to previously painted ceilings and new ceilings where directed. Location: Gents and ladies toilets at block A - 13m² and kitchenette - 3m² ; Block C - room 6- 25m²; room 5 - 49m²; room 4 - 49m² ; room 3 - 49m² ; room 2 - 49m² ; Block D- gents toilet - 16m²; Block B - room 3 - 49m²; room 2 - 10m² ; room 4 - 25m² | B226: m² | C226: 337 | D226: 0 | E226: 0
A227: PAINT WALLS WITH EMULSION PAINT
A228: Prepare painted wall surfaces by sanding down thoroughly. Clean down walls using and approved detergent rendering walls free from dirt and grease. All cracks are to be filled with approved crack filler and sanded down to a smooth and even surface flush with surrounding surfaces. On completion apply one undercoat and two coats emulsion paint similar to “Dulux or Plascon” paint to walls where directed. Location: Block A -kitchennette - 20m² | B228: m² | C228: 20 | D228: 0 | E228: =C228*D228 -> 0
A229: PAINT WINDOW FRAMES WITH HIGH GLOSS
A230: Clean down, prepare for and apply one undercoat and two coats high gloss to window frames (both sides). Location: Block A - gents and ladies toilets - 4m² | B230: m² | C230: 4 | D230: 0 | E230: =C230*D230 -> 0
A231: PAINT DOOR FRAMES WITH HIGH GLOSS
A232: Clean down, prepare for and apply one undercoat and two coats high gloss to door frames. Location: Block A - gents and ladies toilets - 10m ; kitchenette - 5m; store room - 5m. | B232: m | C232: 20 | D232: 0 | E232: =C232*D232 -> 0
A234: VARNISH SKIRTINGS AND QUADRANT WITH HIGH GLOSS
A235: Sand down, thoroughly clean, prepare for and apply two coats approved varnish to timber doors. Allow for a 24 hour drying time between coats with doors lightly sanded between coats. Location: Block B - disabled toilet. | B235: m | C235: 6 | D235: 0 | E235: =C235*D235 -> 0
A236: EXTERNAL PAINTING
... 41 more rows
